bitfinex/quotes_SOLUSD_20250924
["timestamp","ask_amount","ask_price","bid_price","bid_amount"]
[1758745758888,4.05859649,213.03,213.02,4.69439489]
[1758745759968,4.05859649,213.03,213.0,16.43166263]
[1758745760167,3.39859649,213.01,213.0,4.69483568]
[1758745761110,39.59559401,213.0,212.78,23.49821426]
[1758745761398,26.0,212.92,212.84,4.69836496]
[1758745761495,3.39859649,212.87,212.84,16.44427738]
[1758745761795,3.39859649,212.88,212.84,16.44427738]
[1758745762005,3.39859649,212.87,212.85,0.66]
[1758745762210,6.56158166,212.86,212.85,0.66]
[1758745762501,26.0,212.83,212.8,0.1]
[1758745762803,3.39859649,212.81,212.8,0.1]
[1758745762996,6.55435094,212.81,212.8,0.1]
[1758745763374,7.01435094,212.81,212.8,0.1]
[1758745763773,26.0,212.78,212.75,4.70034486]
[1758745763973,26.0,212.78,212.7,36.9]
[1758745763974,3.39859649,212.76,212.72,9.39971143]
[1758745764177,3.39859649,212.75,212.72,9.39971143]
[1758745764375,3.39859649,212.74,212.72,9.39971143]
[1758745764598,3.39859649,212.74,212.73,0.66]
[1758745765984,26.0,212.79,212.73,17.11278051]
[1758745766191,3.39859649,212.74,212.73,16.45278051]
[1758745766778,3.39859649,212.74,212.73,17.11278051]
[1758745772490,3.39859649,212.74,212.73,16.45278051]
[1758745772685,3.39859649,212.74,212.73,17.11278051]
[1758745779224,3.39859649,212.74,212.73,16.11278051]
[1758745780036,3.39859649,212.74,212.73,12.41198608]
[1758745782228,3.39859649,212.74,212.73,17.11278051]
[1758745792027,3.39859649,212.74,212.73,11.75198608]
[1758745792535,3.39859649,212.74,212.73,12.41198608]
[1758745793720,3.39859649,212.74,212.73,17.11278051]
[1758745794819,3.39859649,212.8,212.73,40.61675268]
[1758745795022,0.46,212.84,212.74,0.66]
[1758745795336,3.39859649,212.8,212.74,0.66]
[1758745795515,6.51525804,212.79,212.74,0.66]
[1758745795723,3.39859649,212.79,212.76,16.4504606]
[1758745795930,3.39859649,212.79,212.77,0.66]
[1758745796314,3.39859649,212.79,212.78,0.66]
[1758745796636,6.51858241,212.79,212.78,5.35968982]
[1758745797012,3.39859649,212.79,212.78,5.35968982]
[1758745798320,6.52363394,212.79,212.78,5.35968982]
[1758745799536,3.39859649,212.81,212.78,17.10891437]
[1758745799843,3.39859649,212.81,212.79,0.66]
[1758745800143,3.39859649,212.81,212.78,16.44891437]
[1758745800343,3.13144783,212.8,212.79,0.7]
[1758745800642,3.13144783,212.8,212.78,16.44891437]
[1758745800843,3.39859649,212.81,212.78,30.57952834]
[1758745801015,3.39859649,212.81,212.79,0.7]
[1758745801516,3.39859649,212.81,212.8,0.7]
[1758745801715,6.53382608,212.81,212.8,5.39924812]
[1758745802644,3.13522959,212.81,212.8,4.69924812]
[1758745802820,3.13522959,212.81,212.8,5.39924812]
[1758745803020,3.13522959,212.81,212.8,9.34506437]
[1758745803434,6.53382608,212.81,212.8,8.64506437]
[1758745804251,39.59559401,212.78,212.68,4.70189956]
[1758745804453,3.39859649,212.69,212.68,4.70189956]
[1758745804618,3.39859649,212.69,212.68,18.84117138]
[1758745804819,3.39859649,212.7,212.68,31.29592029]
[1758745805145,26.46,212.73,212.68,16.45664847]
[1758745805444,3.39859649,212.69,212.68,16.45664847]
[1758745805745,6.54980834,212.69,212.68,11.75474891]
[1758745806118,3.15121185,212.69,212.68,11.75474891]
[1758745806342,6.54980834,212.69,212.68,11.75474891]
[1758745806519,5.33355362,212.69,212.68,11.75474891]
[1758745809247,5.33355362,212.69,212.68,12.45474891]
[1758745809549,5.33355362,212.69,212.68,17.15664847]
[1758745809848,5.33355362,212.69,185.7,15.201]
[1758745809849,5.33355362,212.69,212.61,9.24760355]
[1758745810050,5.33355362,212.69,212.44,2.39637447]
[1758745810051,10.91170885,212.62,212.44,2.39637447]
[1758745810350,26.0,212.42,212.24,18.5847285]
[1758745810653,12.36890471,212.41,212.36,14.15828968]
[1758745810942,26.0,212.38,212.24,16.49076516]
[1758745811156,29.62755854,212.37,212.24,16.49076516]
[1758745811332,26.0,212.32,212.24,16.49076516]
[1758745811528,3.12755854,212.31,212.2,16.4938737]
[1758745811728,3.12755854,212.3,212.2,16.4938737]
[1758745811945,2.18234177,212.26,212.2,16.4938737]
[1758745812156,2.18234177,212.25,212.2,16.4938737]
[1758745812460,13.59559401,212.2,212.15,14.17333995]
[1758745812769,2.18234177,212.21,212.16,0.7]
[1758745812924,0.5,212.32,212.17,39.56]
[1758745813125,2.18234177,212.29,212.18,0.7]
[1758745813342,2.18234177,212.29,212.19,39.56]
[1758745813520,2.18234177,212.29,212.21,13.59559401]
[1758745813725,2.18234177,212.31,212.22,0.7]
[1758745814027,0.5,212.38,212.26,26.0]
[1758745814226,0.5,212.38,212.27,0.7]
[1758745814430,2.18234177,212.33,212.27,0.7]
[1758745814629,5.39111163,212.34,212.27,0.7]
[1758745814934,5.39111163,212.42,212.27,0.7]
[1758745814935,23.93311729,212.47,212.27,26.7]
[1758745815139,31.8184007,212.49,212.28,14.29559401]
[1758745815338,0.5,212.45,212.3,13.59559401]
[1758745815526,27.88528341,212.49,212.29,0.7]
[1758745815527,27.88528341,212.49,212.36,13.59559401]
[1758745815729,27.88528341,212.49,212.32,53.62950507]
[1758745815730,5.39111163,212.44,212.37,0.7]
[1758745815944,27.88528341,212.49,212.38,0.7]
[1758745815945,5.39111163,212.48,212.38,0.7]
[1758745816150,5.39111163,212.48,212.39,0.7]
[1758745816370,5.39111163,212.48,212.4,0.7]
[1758745816371,19.54906722,212.48,212.4,0.7]
[1758745816554,5.39111163,212.48,212.4,0.7]
[1758745817352,5.39111163,212.46,212.4,0.7]
[1758745817543,5.39111163,212.46,212.41,16.47756696]
[1758745818261,5.39111163,212.44,212.41,16.47756696]
[1758745819033,5.39111163,212.42,212.41,4.70787627]
[1758745819676,5.39111163,212.42,212.37,16.48020509]
[1758745819847,5.39111163,212.41,212.37,16.48020509]
[1758745820051,5.39111163,212.42,212.37,16.48020509]
[1758745820356,0.5,212.44,212.37,17.18020509]
[1758745822366,5.39111163,212.46,212.41,0.72]
[1758745822538,5.39111163,212.46,212.42,0.72]
[1758745822739,5.39111163,212.43,212.38,0.72]
[1758745822943,5.39111163,212.41,212.37,40.02402012]
[1758745823571,5.39111163,212.41,212.37,40.74402012]
[1758745823770,26.0,212.49,212.38,0.72]
[1758745824081,5.39111163,212.45,212.38,0.72]
[1758745824245,5.39111163,212.44,212.38,0.72]
[1758745825553,26.5,212.49,212.38,0.72]
[1758745825758,5.39111163,212.45,212.38,0.72]
[1758745826050,5.39111163,212.45,212.39,40.0207166]
[1758745826360,5.39111163,212.45,212.4,0.72]
[1758745826767,5.39111163,212.45,212.41,0.72]
[1758745827166,0.5,212.49,212.42,0.72]
[1758745827373,5.39111163,212.45,212.42,0.72]
[1758745827882,5.39111163,212.47,212.43,16.47601562]
[1758745828043,0.5,212.52,212.43,17.19601562]
[1758745828249,5.39111163,212.47,212.43,16.47601562]
[1758745828548,5.89111163,212.49,212.43,16.47601562]
[1758745828884,5.39111163,212.49,212.43,16.47601562]
[1758745829373,0.5,212.52,212.43,40.0131808]
[1758745829566,5.39111163,212.51,212.44,0.72]
[1758745830047,5.39111163,212.51,212.45,16.47446456]
[1758745830446,5.39111163,212.52,212.45,40.00941395]
[1758745830762,5.39111163,212.51,212.45,40.00941395]
[1758745832057,5.39111163,212.5,212.45,40.00941395]
[1758745832251,5.39111163,212.5,212.45,40.72941395]
[1758745833084,5.39111163,212.51,212.45,40.72941395]
[1758745835706,5.39111163,212.52,212.45,40.72941395]
[1758745835871,5.39111163,212.52,212.46,0.72]
[1758745836071,26.5,212.54,212.46,0.72]
[1758745836293,5.39111163,212.53,212.47,40.00564784]
[1758745836482,31.39111163,212.54,212.48,0.72]
[1758745837189,26.0,212.54,212.48,0.72]
[1758745837398,5.39111163,212.55,212.48,0.72]
[1758745837604,5.39111163,212.52,212.47,40.00564784]
[1758745837899,5.39111163,212.51,212.47,40.00564784]
[1758745838078,5.39111163,212.51,212.47,40.72564784]
[1758745838686,2.18615732,212.52,212.47,40.72564784]
[1758745839569,2.18615732,212.5,212.47,40.00564784]
[1758745839764,2.18615732,212.5,212.47,16.47291381]
[1758745839968,5.27912689,212.49,212.47,16.47291381]
[1758745840267,3.09296957,212.48,212.47,16.47291381]
[1758745840976,3.09296957,212.48,212.47,11.76636701]
[1758745841892,3.09296957,212.48,212.45,0.72]
[1758745842075,3.09296957,212.47,212.46,0.72]
[1758745842902,2.18615732,212.52,212.46,0.72]
[1758745843272,26.0,212.5,212.46,0.72]
[1758745843885,2.18615732,212.52,212.47,0.72]
[1758745844084,2.18615732,212.51,212.45,0.72]
[1758745844475,28.18615732,212.48,212.44,16.47524005]
[1758745844677,2.18615732,212.47,212.44,16.47524005]
[1758745844896,3.86113489,212.52,212.44,16.47524005]
[1758745845207,28.18615732,212.49,212.44,17.19524005]
[1758745845614,2.18615732,212.49,212.44,17.19524005]
[1758745846418,2.6867983,212.49,212.44,17.19524005]
[1758745846697,2.1867983,212.48,212.44,16.47524005]
[1758745847274,2.1867983,212.48,212.44,17.19524005]
[1758745848204,2.1867983,212.47,212.44,16.47524005]
[1758745848388,2.1867983,212.46,212.44,16.47524005]
[1758745849691,2.1867983,212.45,212.44,16.47524005]
[1758745850097,2.1867983,212.46,212.44,11.76802861]
[1758745850301,29.86113489,212.49,212.44,11.76802861]
[1758745850485,30.36113489,212.49,212.44,11.76802861]
[1758745852012,3.86113489,212.48,212.44,11.76802861]
[1758745852201,3.86113489,212.47,212.44,11.76802861]
[1758745852789,3.86113489,212.48,212.44,11.76802861]
[1758745853220,3.86113489,212.47,212.44,11.76802861]
[1758745853791,3.86113489,212.48,212.44,11.76802861]
[1758745854192,3.86113489,212.46,212.44,11.76802861]
[1758745854914,3.14730892,212.45,212.44,11.76802861]
[1758745857430,3.14730892,212.45,212.44,0.72]
[1758745858719,3.14730892,212.45,212.44,5.42721144]
[1758745860619,3.14730892,212.45,212.44,4.70721144]
[1758745860830,3.64730892,212.45,212.39,0.7]
[1758745861000,2.1867983,212.43,212.39,0.7]
[1758745861206,3.14730892,212.42,212.4,0.7]
[1758745861531,3.14730892,212.41,212.4,0.7]
[1758745862313,3.14730892,212.41,212.4,4.70809792]
[1758745864016,28.1867983,212.44,212.4,17.17834274]
[1758745864210,3.15438788,212.43,212.4,17.17834274]
[1758745864412,28.1867983,212.44,212.4,17.17834274]
[1758745864621,3.15474832,212.43,212.4,17.17834274]
[1758745864822,28.1867983,212.44,212.4,17.17834274]
[1758745865018,0.5,212.46,212.41,0.7]
[1758745865019,26.0,212.46,212.41,0.7]
[1758745865216,3.15501609,212.45,212.42,0.7]
[1758745865410,26.0,212.46,212.42,0.7]
[1758745865619,26.0,212.44,212.42,0.7]
[1758745866024,2.1867983,212.46,212.42,0.7]
[1758745866227,28.1867983,212.47,212.4,40.01883238]
[1758745866425,3.15496132,212.46,212.44,16.47524005]
[1758745866618,28.1867983,212.47,212.44,16.47524005]
[1758745866825,3.15496186,212.46,212.45,0.7]
[1758745867020,3.15495046,212.46,212.45,0.7]
[1758745867211,26.0,212.47,212.44,16.47524005]
[1758745867411,3.94368808,212.53,212.45,0.7]
[1758745867613,5.34155232,212.52,212.45,0.7]
[1758745867832,5.34155232,212.51,212.45,0.7]
[1758745868133,2.1867983,212.51,212.45,0.7]
[1758745868334,2.1867983,212.5,212.46,16.47368916]
[1758745868539,3.41622691,212.5,212.47,0.7]
[1758745868831,3.41622691,212.5,212.48,0.7]
[1758745869214,3.41622691,212.5,212.49,0.7]
[1758745869413,3.41622691,212.5,212.46,40.00753082]
[1758745869612,3.41622691,212.52,212.49,0.7]
[1758745869913,3.41622691,212.53,212.5,0.7]
[1758745870116,3.41622691,212.54,212.5,0.7]
[1758745870531,3.41622691,212.55,212.51,11.76415227]
[1758745870733,29.41622691,212.54,212.51,11.76415227]
[1758745870932,134.6,212.57,212.45,0.7]
[1758745870933,3.41622691,212.52,212.45,0.7]
[1758745871135,3.41622691,212.49,212.45,0.7]
[1758745871331,3.41622691,212.5,212.46,0.7]
[1758745871530,3.41622691,212.5,212.42,41.93622691]
[1758745871531,3.41622691,212.51,212.47,0.7]
[1758745871719,3.41622691,212.51,212.48,0.7]
[1758745871922,29.41622691,212.53,212.49,0.7]
[1758745872127,29.41622691,212.53,212.5,0.7]
[1758745872839,3.41622691,212.53,212.51,4.70566091]
[1758745873340,29.41622691,212.54,212.51,17.16981318]
[1758745876844,29.41622691,212.54,212.49,0.7]
[1758745877133,29.41622691,212.54,212.5,0.7]
[1758745878340,29.41622691,212.54,212.51,16.46981318]
[1758745879723,29.41622691,212.54,212.48,23.5316265]
[1758745879918,29.41622691,212.54,212.5,0.7]
[1758745881036,29.41622691,212.54,212.51,16.46981318]
[1758745882215,26.0,212.54,212.48,40.00376505]
[1758745882421,29.41622691,212.54,212.49,0.72]
[1758745883221,26.0,212.54,212.49,0.72]
[1758745883538,3.41622691,212.56,212.49,4.13622691]
[1758745883721,29.41622691,212.56,212.5,0.72]
[1758745884228,3.41622691,212.56,212.51,39.99811773]
[1758745884434,3.41622691,212.56,212.52,0.72]
[1758745884738,3.41622691,212.56,212.53,0.72]
[1758745885335,3.41622691,212.56,212.54,4.7049967]
[1758745886323,3.41622691,212.56,212.54,5.4249967]
[1758745886538,29.41622691,212.57,212.54,17.18748846]
[1758745887226,29.41622691,212.57,212.54,16.46748846]
[1758745887421,3.41622691,212.57,212.54,0.72]
[1758745888019,3.41622691,212.56,212.52,0.72]
[1758745888226,3.41622691,212.53,212.51,16.46981318]
[1758745888428,3.41622691,212.52,212.51,16.46981318]
[1758745889340,3.41622691,212.52,212.48,16.47213855]
[1758745889542,3.41622691,212.51,212.48,17.19213855]
[1758745890750,3.41622691,212.49,212.48,16.47213855]
[1758745893368,3.41622691,212.49,212.48,11.76581325]
[1758745894182,29.91622691,212.49,212.47,4.7065468]
[1758745894355,3.91622691,212.48,212.47,4.7065468]
[1758745894559,29.91622691,212.48,212.47,4.7065468]
[1758745895064,29.91622691,212.48,212.45,11.76707816]
[1758745895278,3.41622691,212.46,212.45,11.76707816]
[1758745900573,3.41622691,212.47,212.45,11.76707816]
[1758745901700,3.41622691,212.46,212.45,11.76707816]
[1758745903757,3.41622691,212.46,212.45,12.48707816]
[1758745904084,3.41622691,212.5,212.45,12.48707816]
[1758745904275,26.0,212.5,212.46,0.72]
[1758745904870,26.0,212.5,212.47,17.19291381]
[1758745905199,26.0,212.5,212.47,16.47291381]
[1758745905498,29.41622691,212.51,212.48,0.72]
[1758745906864,29.41622691,212.51,212.5,4.70588235]
[1758745908091,29.41622691,212.52,212.5,17.19058823]
[1758745908284,29.41622691,212.52,212.51,0.72]
[1758745908863,26.0,212.52,212.51,0.72]
[1758745909073,26.0,212.52,212.51,5.42566091]
[1758745910069,3.41622691,212.55,212.51,40.71811773]
[1758745910289,3.41622691,212.55,212.51,39.99811773]
[1758745910290,29.41622691,212.55,212.51,39.99811773]
[1758745910592,29.41622691,212.55,212.52,0.72]
[1758745911271,29.41622691,212.55,212.53,4.70521808]
[1758745911476,0.5,212.6,212.54,0.66]
[1758745911672,26.0,212.56,212.54,0.66]
[1758745911871,3.41622691,212.57,212.54,0.66]
[1758745912072,26.0,212.56,212.54,0.66]
[1758745912594,26.0,212.56,212.55,4.70477534]
[1758745913992,26.0,212.56,212.55,5.36477534]
[1758745916590,26.0,212.56,212.55,4.70477534]
[1758745916893,26.0,212.56,212.55,5.36477534]
[1758745917198,29.41622691,212.59,212.55,17.1267137]
[1758745918471,26.0,212.58,212.55,17.1267137]
[1758745919990,29.41622691,212.59,212.55,17.1267137]
[1758745920204,26.0,212.58,212.55,17.1267137]
[1758745920597,26.0,212.58,212.55,16.4667137]
[1758745920790,26.0,212.58,212.56,0.72]
[1758745921799,26.0,212.58,212.55,16.4667137]
[1758745922099,3.41622691,212.61,212.57,0.72]
[1758745922300,26.0,212.59,212.58,4.70411139]
[1758745922482,29.41622691,212.62,212.58,17.18438987]
[1758745923995,29.41622691,212.62,212.58,16.46438987]
[1758745924198,26.0,212.58,212.56,4.70438124]
[1758745924399,29.91622691,212.57,212.52,16.4690382]
[1758745924600,3.41622691,212.55,212.52,16.4690382]
[1758745925091,3.41622691,212.55,212.52,17.1890382]
[1758745925608,3.41622691,212.55,212.51,23.52830455]
[1758745925901,3.41622691,212.54,212.51,24.24830455]
[1758745926290,3.41622691,212.55,212.51,23.52830455]
[1758745926483,3.41622691,212.55,212.51,24.24830455]
[1758745926896,3.41622691,212.54,212.51,24.24830455]
[1758745927802,3.41622691,212.54,212.52,0.72]
[1758745928576,2.18568499,212.54,212.52,0.72]
[1758745928904,2.18568499,212.55,212.53,16.46826329]
[1758745929095,2.18568499,212.57,212.54,0.72]
[1758745929299,26.0,212.55,212.54,0.72]
[1758745931096,2.18568499,212.57,212.54,17.18748846]
[1758745931284,26.0,212.56,212.54,17.18748846]
[1758745932588,26.0,212.56,212.55,0.72]
[1758745933006,26.0,212.56,212.54,16.46748846]
[1758745933418,26.0,212.56,212.54,17.18748846]
[1758745935113,2.68568499,212.55,212.47,24.25253353]
[1758745935314,2.18568499,212.51,212.47,24.25253353]
[1758745935508,2.18568499,212.49,212.47,0.72]
[1758745935706,2.18568499,212.48,212.44,16.47524005]
[1758745935930,2.18568499,212.5,212.45,0.72]
[1758745936489,2.18568499,212.5,212.44,40.01129728]
[1758745936690,2.18568499,212.49,212.45,0.72]
[1758745936994,2.18568499,212.49,212.46,0.72]
[1758745937206,2.18568499,212.49,212.47,4.7065468]
[1758745938013,2.18568499,212.5,212.47,17.19291381]
[1758745939915,2.18568499,212.5,212.48,0.72]
[1758745940234,2.18568499,212.51,212.49,0.72]
[1758745940386,2.18568499,212.51,212.47,17.19291381]
[1758745940587,2.18568499,212.51,212.48,0.72]
[1758745941313,26.0,212.52,212.47,40.00564784]
[1758745941513,2.18568499,212.54,212.49,0.7]
[1758745941716,26.0,212.53,212.5,16.47058823]
[1758745941925,26.0,212.53,212.51,0.7]
[1758745942421,26.0,212.54,212.52,0.7]
[1758745942795,26.0,212.54,212.5,16.47058823]
[1758745943095,26.0,212.54,212.51,0.7]
[1758745943295,26.0,212.54,212.52,0.7]
[1758745943805,26.0,212.54,212.5,11.76470588]
[1758745944119,2.18568499,212.57,212.51,0.7]
[1758745944323,2.18568499,212.57,212.5,11.76470588]
[1758745944324,2.18568499,212.54,212.5,11.76470588]
[1758745944822,2.18568499,212.54,212.5,12.46470588]
[1758745945016,2.18568499,212.54,212.51,0.7]
[1758745945321,26.0,212.61,212.52,39.99623564]
[1758745945514,26.0,212.56,212.53,0.7]
[1758745945905,26.0,212.56,212.54,0.7]
[1758745947124,26.0,212.56,212.55,0.7]
[1758745947418,26.0,212.56,212.53,0.7]
[1758745947626,26.0,212.56,212.54,0.7]
[1758745948132,28.18568499,212.56,212.55,4.70477534]
[1758745950232,26.0,212.56,212.55,0.7]
[1758745950599,26.0,212.56,212.53,0.7]
[1758745950799,26.0,212.56,212.54,0.7]
[1758745951019,26.0,212.56,212.52,39.99623564]
[1758745951224,26.0,212.56,212.55,0.7]
[1758745952120,2.18568499,212.57,212.55,0.7]
[1758745952326,2.18568499,212.58,212.56,0.7]
[1758745952517,2.18568499,212.59,212.53,2.18568499]
[1758745952832,2.18568499,212.57,212.52,42.18192063]
[1758745953025,2.18568499,212.57,212.53,0.7]
[1758745953231,2.18568499,212.58,212.53,0.7]
[1758745953931,2.18568499,212.58,212.54,16.46748846]
[1758745954127,2.18568499,212.58,212.55,0.7]
[1758745954324,2.18568499,212.58,212.56,0.7]
[1758745954832,2.18568499,212.58,212.57,0.7]
[1758745955029,2.18568499,212.59,212.57,0.7]
[1758745955203,26.0,212.55,212.54,4.7049967]
[1758745955602,28.18568499,212.55,212.54,16.46748846]
[1758745955825,28.18568499,212.55,212.54,11.76249176]
[1758745959426,2.18568499,212.55,212.54,11.76249176]
[1758745964826,45.4334445,212.55,212.48,24.23154505]
[1758745965023,26.0,212.51,212.49,4.70610381]
[1758745965342,26.0,212.51,212.5,0.7]
[1758745966241,28.18568499,212.51,212.5,0.7]
[1758745966445,28.18568499,212.51,212.5,5.40588235]
[1758745966636,2.18568499,212.51,212.5,5.40588235]
[1758745970044,0.5,212.6,212.5,40.69999999]
[1758745970252,2.18568499,212.54,212.51,0.7]
[1758745971047,2.18568499,212.55,212.51,0.7]
[1758745971243,2.18568499,212.55,212.52,16.4690382]
[1758745971439,2.18568499,212.55,212.53,0.68]
[1758745971761,2.18568499,212.56,212.54,0.68]
[1758745971932,2.68568499,212.55,212.52,16.4690382]
[1758745972134,2.18568499,212.53,212.52,16.4690382]
[1758745973440,2.18568499,212.53,212.49,16.47136335]
[1758745973636,2.18568499,212.51,212.49,17.15136335]
[1758745973951,2.18568499,212.51,212.5,0.68]
[1758745974142,2.18568499,212.52,212.5,0.68]
[1758745976256,2.18568499,212.52,212.51,4.70566091]
[1758745976855,2.18568499,212.53,212.51,5.38566091]
[1758745977160,28.18568499,212.54,212.52,0.68]
[1758745977341,28.18568499,212.54,212.53,0.68]
[1758745977545,28.18568499,212.54,212.51,17.14981318]
[1758745977735,28.18568499,212.54,212.52,0.68]
[1758745978563,28.18568499,212.54,212.53,4.70521808]
[1758745979936,28.18568499,212.54,212.53,5.38521808]
[1758745980157,0.5,212.6,212.53,17.14826329]
[1758745980356,28.18568499,212.56,212.54,0.68]
[1758745980560,28.18568499,212.56,212.55,0.68]
[1758745980857,31.33837478,212.56,212.55,0.68]
[1758745981057,2.18568499,212.56,212.55,0.68]
[1758745981961,2.18568499,212.56,212.55,5.38477534]
[1758745982164,28.18568499,212.57,212.55,5.38477534]
[1758745982355,28.18568499,212.57,212.56,0.68]
[1758745983062,28.18568499,212.57,212.56,5.384554]
[1758745983257,2.18568499,212.58,212.56,17.14593902]
[1758745983460,2.18568499,212.6,212.57,0.68]
[1758745983953,2.18568499,212.6,212.58,0.68]
[1758745984538,2.18568499,212.6,212.59,4.70389011]
[1758745984756,5.33875322,212.6,212.59,4.70389011]
[1758745984956,2.18568499,212.6,212.59,4.70389011]
[1758745987855,2.18568499,212.6,212.59,5.38389011]
[1758745988645,2.18568499,212.62,212.59,17.1436154]
[1758745988849,2.18568499,212.62,212.6,0.68]
[1758745989054,2.18568499,212.62,212.61,0.68]
[1758745989960,2.18568499,212.62,212.61,5.38344762]
[1758745990552,3.41215254,212.63,212.61,17.14206668]
[1758745992265,3.41215254,212.63,212.61,16.46206668]
[1758745992774,3.41215254,212.62,212.61,16.46206668]
[1758745994171,3.41215254,212.62,212.61,11.75861906]
[1758745994674,26.0,212.57,212.52,5.38543948]
[1758745994844,3.41215254,212.53,212.52,16.4690382]
[1758745995047,3.41215254,212.53,212.52,4.70543948]
[1758745995383,3.41215254,212.53,212.34,22.45956262]
[1758745995384,26.0,212.5,212.35,42.408519]
[1758745995691,26.0,212.5,212.44,0.68]
[1758745995692,3.41215254,212.46,212.44,0.68]
[1758745996476,3.41215254,212.46,212.45,4.70698987]
[1758745996672,3.41215254,212.46,212.45,5.38698987]
[1758745997048,3.41215254,212.46,212.45,4.70698987]
[1758745997264,26.0,212.43,212.33,0.68]
[1758745997449,3.41215254,212.35,212.33,0.68]
[1758745997850,26.0,212.33,212.29,0.1]
[1758745998065,3.41215254,212.3,212.29,4.81052151]
[1758745998850,3.41215254,212.3,212.29,5.49052151]
[1758745999283,3.41215254,212.3,212.29,4.81052151]
[1758745999454,3.41215254,212.3,212.29,0.1]
[1758746004291,7.32430508,212.3,212.29,0.1]
[1758746005316,7.32430508,212.3,212.23,12.44946006]
[1758746005317,26.0,212.26,212.23,4.71183234]
[1758746005469,3.41215254,212.24,212.23,4.71183234]
[1758746008390,3.41215254,212.24,212.21,4.71231327]
[1758746008581,3.41215254,212.22,212.21,4.71231327]
[1758746008890,3.41215254,212.22,212.2,16.49356406]
[1758746009092,3.41215254,212.21,212.2,17.16356406]
[1758746009990,26.0,212.24,212.2,17.16356406]
[1758746010290,26.0,212.24,212.1,13.59559401]
[1758746010291,26.0,212.24,212.16,0.67]
[1758746010491,26.0,212.24,212.17,0.67]
[1758746010787,3.41215254,212.2,212.18,4.71297954]
[1758746010979,3.41215254,212.21,212.19,0.67]
[1758746011184,3.41215254,212.22,212.2,0.67]
[1758746011398,3.41215254,212.23,212.21,0.67]
[1758746011791,37.26,212.28,212.22,0.67]
[1758746011792,3.41215254,212.24,212.22,0.67]
[1758746012109,3.41215254,212.24,212.23,0.67]
[1758746012413,3.41215254,212.24,212.19,0.67]
[1758746013106,3.41215254,212.24,212.2,16.4938737]
[1758746013304,3.41215254,212.24,212.21,0.67]
[1758746013496,63.26,212.28,212.21,0.67]
[1758746013697,3.41215254,212.27,212.21,0.67]
[1758746014405,3.41215254,212.26,212.21,0.67]
[1758746014607,3.41215254,212.27,212.21,4.08215254]
[1758746014912,3.41215254,212.3,212.24,3.41215254]
[1758746015097,3.41215254,212.3,212.25,17.15998821]
[1758746015292,3.41215254,212.3,212.26,0.67]
[1758746015493,3.41215254,212.3,212.27,0.67]
[1758746015805,0.5,212.34,212.28,0.67]
[1758746016106,3.41215254,212.32,212.28,0.67]
[1758746016314,3.41215254,212.32,212.29,0.67]
[1758746016503,29.41215254,212.32,212.29,0.67]
[1758746016696,29.41215254,212.32,212.26,3.41215254]
[1758746016894,29.41215254,212.32,212.3,0.67]
[1758746016895,3.41215254,212.32,212.3,0.67]
[1758746017193,3.41215254,212.34,212.31,0.67]
[1758746017423,29.41215254,212.33,212.31,0.67]
[1758746018112,3.41215254,212.33,212.31,0.67]
[1758746018296,3.41215254,212.33,212.32,4.70987189]
[1758746020113,3.41215254,212.35,212.32,17.15455161]
[1758746020408,3.41215254,212.35,212.32,16.48455161]
[1758746020611,3.41215254,212.34,212.32,16.48455161]
[1758746021919,3.41215254,212.34,212.32,17.15455161]
[1758746022093,3.41215254,212.35,212.33,0.67]
[1758746022416,3.41215254,212.36,212.33,0.67]
[1758746023113,26.0,212.37,212.34,4.70942827]
[1758746023294,3.58581782,212.36,212.21,0.67]
[1758746023496,3.41215254,212.26,212.21,0.67]
[1758746023799,3.41215254,212.26,212.19,3.41215254]
[1758746023800,29.41215254,212.26,212.22,0.67]
[1758746024193,3.41215254,212.26,212.19,3.41215254]
[1758746024399,14.09559401,212.33,212.23,0.67]
[1758746024692,29.41215254,212.3,212.23,4.08215254]
[1758746025009,29.41215254,212.3,212.24,0.67]
[1758746025189,3.41215254,212.29,212.25,16.48998821]
[1758746025390,3.41215254,212.29,212.25,17.15998821]
[1758746025604,3.41215254,212.28,212.25,16.48998821]